Cogmind - Beta 11 X4 @@@ ROGUE MODE // 2021.05.10 @ 19:40:49 Player: Terminus Result: Destroyed by as-05054 with Assembled Maul Performance ------------- Evolutions (0) 0 Regions Visited (2) 400 Robots Destroyed (22) 110 Value Destroyed (477) 477 Prototype IDs (0) 0 Alien Tech Used (0) 0 Bonus (0) 0 TOTAL SCORE: 987 Bonus ------- None Cogmind --------- Core Integrity 0/250 Matter 186/300 Energy 238/250 System Corruption 7% Temperature Cool (0) Movement Treading (260) Ox1 Location -10/Mines Parts ------- > --- POWER (1) -------- Ion Engine > --- PROPULSION (2) --- Light Treads Light Treads > --- UTILITY (2) ------ Improved Heat Sink High-capacity Storage Unit > --- WEAPON (2) ------- EM Shotgun Light Assault Rifle > --- INVENTORY (20) --- Ion Engine Light Ion Engine Light Treads Disposable Heat Sink Hacking Suite Small Laser Small Laser Light Assault Rifle Proton Bomb Trap Proton Bomb Trap Proton Bomb Trap Proton Bomb Trap Signal Generator Peak State ------------ > --- POWER ------------ Ion Engine > --- PROPULSION ------- Light Treads Light Treads > --- UTILITY ---------- Improved Heat Sink High-capacity Storage Unit > --- WEAPON ----------- EM Shotgun EM Shotgun > --- INVENTORY -------- Light Ion Engine Light Treads Light Treads Light Treads Disposable Heat Sink Light Armor Plating Hacking Suite Small Laser Light Assault Rifle Light Assault Rifle Light Assault Rifle Light Assault Rifle Grenade Launcher [Rating: 12] Favorites ----------- Power Ion Engine Engine Ion Engine Propulsion Light Treads Treads Light Treads Utility High-capacity Storage Unit Device Disposable Heat Sink Storage High-capacity Storage Unit Protection Light Armor Plating Weapon Light Assault Rifle Energy Gun EM Shotgun Energy Cannon Beam Cannon Ballistic Gun Light Assault Rifle Launcher Grenade Launcher Build | -11 -10 -10 ------- Run | Scr Mat Min Slots Evolved . | . . . Power . | . . . Propulsion . | . . . Utility . | . . . Weapon . | . . . Parts Attached 34 | 6 19 9 Power 2 | 1 . 1 Engine 2 | 1 . 1 Core . | . . . Reactor . | . . . Propulsion 6 | 2 4 . Treads 6 | 2 4 . Leg . | . . . Wheel . | . . . Hover . | . . . Flight . | . . . Utility 8 | 1 5 2 Device 3 | . 2 1 Storage 3 | 1 2 . Processor . | . . . Hackware . | . . . Protection 2 | . 1 1 Artifact . | . . . Weapon 18 | 2 10 6 Energy Gun 11 | 1 7 3 Energy Cannon 1 | . 1 . Ballistic Gun 5 | 1 2 2 Ballistic Cannon . | . . . Launcher 1 | . . 1 Special Weapon . | . . . Impact Weapon . | . . . Slashing Weapon . | . . . Piercing Weapon . | . . . Special Melee Weapon . | . . . Unidentified Prototypes . | . . . Parts Lost 13 | . 5 8 Power 1 | . . 1 Propulsion 2 | . 2 . Utility 2 | . . 2 Weapon 8 | . 3 5 Highest Loss Streak 3 | . 2 3 Average Slot Usage (%) 99 | . 99 100 Engine 14 | . 14 14 Treads 27 | . 27 28 Device 5 | . 6 . Storage 14 | . 14 14 Protection 8 | . 7 13 Energy Gun 8 | . 9 4 Energy Cannon 3 | . 3 . Ballistic Gun 15 | . 14 20 Naked Turns . | . . . Heaviest Build 52 | 12 50 52 Greatest Support 40 | 40 40 40 Greatest Overweight (x) 3 | 3 1 1 Average Overweight (x) . | . . 1 Largest Inventory Capacity 20 | 8 20 20 Average Capacity 17 | 7 17 20 Most Carried 17 | 1 16 17 Average Carried 12 | . 12 15 Final Capacity 20 | 8 20 20 Final Carried 16 | 1 16 13 Class Distribution -------------------- 100% | Mutant Dominant Class ---------------- Mutant | -10/Materials Mutant | -10/Mines Resources | -11 -10 -10 ----------- Run | Scr Mat Min Matter Collected 454 | 239 204 11 Remotely . | . . . Salvage Created 855 | . 770 85 Parts 52 | . 52 . Haulers Intercepted 2 | . 2 . Recyclers Shooed . | . . . Parts Field Recycled . | . . . Retrieved Matter . | . . . Parts Self-Destructed . | . . . Prevented . | . . . Kills | -11 -10 -10 ------- Run | Scr Mat Min Combat Hostiles Destroyed 23 | . 14 9 Guns 15 | . 11 4 Cannons 2 | . 2 . AOE 5 | . . 5 Classes Destroyed 9 | . 8 1 Worker 1 | . 1 . Builder 1 | . 1 . Hauler 2 | . 2 . Recycler 1 | . 1 . Operator 1 | . 1 . Watcher 2 | . 2 . Swarmer 4 | . 4 . Grunt 10 | . 10 . Assembled 9 | . . 9 Best Kill Streak 5 | . 4 5 Combat Bots Only 5 | . 2 5 Max Kills in Single Turn 2 | . 2 2 Gunslinging . | . . . Exploded 2 | . . 2 Melee . | . . . Uniques/NPCs Destroyed . | . . . Combat | -11 -10 -10 -------- Run | Scr Mat Min Damage Taken 1703 | . 747 956 Core 253 | . 121 132 Absorbed by Shields . | . . . Core Remaining (%) 100 | 100 . . Volleys Fired 77 | . 55 22 Largest 2 | . 2 2 Hottest 100 | . 100 65 Shots Fired 148 | . 109 39 Gun 124 | . 90 34 Cannon 19 | . 19 . Launcher 5 | . . 5 Special . | . . . Kinetic 53 | . 28 25 Thermal 45 | . 41 4 Explosive 5 | . . 5 Electromagnetic 45 | . 40 5 Robot Hit Streak 21 | . 20 21 Robot Miss Streak 5 | . 4 5 Penetration Max . | . . . Secondary Targets 3 | . 2 1 Max Gunslinging Chain 1 | . 1 1 Shots Hit Robots 103 | . 83 20 Core Hits 63 | . 39 24 Critical Kills . | . . . Critical Parts Destroyed . | . . . Critical Strikes . | . . . Melee Attacks . | . . . Impact . | . . . Slashing . | . . . Piercing . | . . . Sneak Attacks . | . . . Combat Hostiles . | . . . Follow-up Attacks . | . . . Damage Inflicted 1763 | . 1255 508 Guns 1059 | . 848 211 Cannons 210 | . 210 . Explosions 438 | . 141 297 Melee . | . . . Ramming 56 | . 56 . Kinetic 318 | . 176 142 Thermal 553 | . 517 36 Explosive 297 | . . 297 Electromagnetic 539 | . 506 33 Impact . | . . . Slashing . | . . . Piercing . | . . . Highest Corruption 7 | . . 7 Average Corruption 6 | . . 6 Corruption Purged . | . . . Effects 3 | . . 3 Message Errors 2 | . . 2 Heat Flow Errors 1 | . . 1 Overload Shots . | . . . Overflow Damage 54 | . 44 10 Projectiles 10 | . 10 . Explosions 44 | . 34 10 Melee . | . . . Knockbacks 1 | . 1 . Impact 1 | . 1 . Kinetic . | . . . Secondary . | . . . Self-Inflicted Damage 69 | . 33 36 Shots 3 | . 1 2 Rammed 13 | . 13 . Targets Rammed 13 | . 13 . Kicked . | . . . Crushed . | . . . Highest Temperature 229 | . 196 229 Average Temperature 56 | . 60 44 Received Heat Transfer 367 | . 327 40 Siege Activations . | . . . Robots Corrupted 1 | . 1 . Combat Hostiles 1 | . 1 . Parts Fried 1 | . 1 . Impact Corruptions . | . . . Robots Melted . | . . . Combat Hostiles . | . . . Parts Melted . | . . . Heat Transferred 994 | . 919 75 Parts Sabotaged . | . . . Parts Stolen . | . . . Parts Stripped . | . . . Power Chain Reactions 2 | . 2 . Missiles Intercepted . | . . . Alert | -11 -10 -10 ------- Run | Scr Mat Min Peak Influence 192 | . 192 27 Initial 27 | . . 27 Average 71 | . 86 3 Maximum Alert Level . | . . . Low Security (%) 100 | 100 100 100 Level 1 . | . . . Level 2 . | . . . Level 3 . | . . . Level 4 . | . . . Level 5 . | . . . High Security . | . . . Max Security . | . . . Squads Dispatched 4 | . 4 . Investigation 3 | . 3 . Extermination . | . . . Reinforcement 1 | . 1 . Assault . | . . . Garrison . | . . . Intercept . | . . . Construction Impeded . | . . . Haulers Reinforced . | . . . Cargo Convoy Interrupts . | . . . Stealth | -11 -10 -10 --------- Run | Scr Mat Min Distress Signals 1 | . 1 . Communications Jammed . | . . . Distress Signals . | . . . Times Spotted 59 | . 44 15 Peak Tracking Total 5 | . 4 5 Tactical Retreats 5 | . 3 2 Traps | -11 -10 -10 ------- Run | Scr Mat Min Traps Triggered 2 | . 2 . Indirectly . | . . . Trap Hack Attempts . | . . . Triggered . | . . . Disarmed . | . . . Reprogrammed . | . . . Reused 1 | . . 1 Traps Extracted . | . . . Installed 1 | . . 1 Triggered 2 | . 1 1 Machines | -11 -10 -10 ---------- Run | Scr Mat Min Machines Disabled 2 | . 2 . Max in Single Turn 1 | . 1 . Machines Sabotaged . | . . . Garrisons Compromised . | . . . Overloaded Fab Kills . | . . . Fab Network Shutdowns . | . . . Hacking | -11 -10 -10 --------- Run | Scr Mat Min Machines Accessed 7 | . 7 . Terminals 5 | . 5 . Fabricators . | . . . Repair Stations 1 | . 1 . Recycling Units 1 | . 1 . Scanalyzers . | . . . Garrison Access . | . . . Total Hacks 23 | . 23 . Successful 15 | . 15 . Failed 8 | . 8 . Catastrophic . | . . . Database Lockouts . | . . . Manual 18 | . 18 . Terminals 18 | . 18 . Fabricators . | . . . Repair Stations 4 | . 4 . Recycling Units 1 | . 1 . Scanalyzers . | . . . Garrison Access . | . . . Terminal Hacks 4 | . 4 . Branch Access Points 1 | . 1 . Terminal Index 1 | . 1 . Alert Level 1 | . 1 . Zone Layout 1 | . 1 . Fabricator Hacks . | . . . Repair Station Hacks 4 | . 4 . Scan Component 2 | . 2 . Repair 2 | . 2 . Recycling Unit Hacks . | . . . Scanalyzer . | . . . Garrison Access Hacks . | . . . Unauthorized Hacks 7 | . 7 . Terminals 6 | . 6 . Track 1 | . 1 . Assimilate 1 | . 1 . Botnet 4 | . 4 . Fabricators . | . . . Repair Stations . | . . . Recycling Units 1 | . 1 . Tunnel 1 | . 1 . Scanalyzers . | . . . Garrison Access . | . . . Data Cores Recovered . | . . . Used . | . . . Hacking Detections 6 | . 6 . Full Trace Events . | . . . Feedback Events . | . . . Feedback Blocked . | . . . Robot Schematics Acquired . | . . . Robots Built . | . . . Matter . | . . . Time . | . . . Total Robot Build Rating . | . . . Part Schematics Acquired . | . . . Parts Built . | . . . Matter . | . . . Time . | . . . Total Part Build Rating . | . . . Parts Repaired 2 | . 2 . Time 52 | . 52 . Parts Recycled . | . . . Recycled Matter . | . . . Retrieved Matter . | . . . Retrieved Components . | . . . Parts Scanalyzed . | . . . Part Schematics Acquired . | . . . Parts Damaged . | . . . Bothacking | -11 -10 -10 ------------ Run | Scr Mat Min Used RIF Installer . | . . . Robots Hacked . | . . . Non-combat . | . . . Combat . | . . . Robot Hacks Applied . | . . . Relay Couplers Released . | . . . Robots Rewired . | . . . Allies Hacked . | . . . Hacks Repelled . | . . . Allies | -11 -10 -10 -------- Run | Scr Mat Min Total Allies 2 | . 1 1 Largest Group 1 | . 1 1 Highest-Rated Group 31 | . 10 31 Highest-Rated Ally 31 | . 10 31 Total Orders . | . . . Ally Attacks 4 | . . 4 Total Damage 40 | . . 40 Kills 1 | . . 1 Allies Corrupted . | . . . Allies Melted . | . . . Intel | -11 -10 -10 ------- Run | Scr Mat Min Robot Analysis Total . | . . . Derelict Logs Recovered . | . . . Drone Launches . | . . . Drone Recoveries . | . . . Exploration | -11 -10 -10 ------------- Run | Scr Mat Min Turns Passed 2363 | 68 1926 369 Spaces Moved 848 | 47 691 110 Core 30 | 30 . . Treads 818 | 17 691 110 Legs . | . . . Wheels . | . . . Hover . | . . . Flight . | . . . Fastest Speed 50 | 50 160 260 Average Speed 224 | 124 225 260 Slowest Speed 260 | 200 260 260 Overloaded Moves . | . . . Propulsion Burnouts . | . . . Robots Hopped . | . . . Cave-ins Triggered . | . . . Exploration Rate (%) 42 | 3 96 28 Regions Visited 2 Branch Regions 1 Pre-discovered Areas 1 | . 1 . Known Exits Taken 1 | . 1 . Unknown Exits Taken 1 | 1 . . Scrap Searched . | . . . Spaces Dug 16 | . . 16 Terrain Destroyed 31 | . 3 28 Melee . | . . . Projectile . | . . . AOE 31 | . 3 28 Terrain Rammed . | . . . Walls Destroyed . | . . . Machines Disabled . | . . . Actions | -11 -10 -10 --------- Run | Scr Mat Min Total 1147 | 53 934 160 Wait 141 | . 130 11 Move 846 | 46 690 110 Hop . | . . . Pick Up 30 | 1 23 6 Fast Attach 9 | 6 3 . Attach 13 | . 5 8 Detach . | . . . Swap 12 | . 11 1 Drop 5 | . 4 1 Fire 77 | . 55 22 Melee . | . . . Ram . | . . . Kick . | . . . Crush 13 | . 13 . Escape Stasis . | . . . Rewire . | . . . Trap 1 | . . 1 Miscellaneous . | . . . Route ------- -11/Scrapyard -10/Materials (discovered 5 exits: [*Mat x3] / *Min x2) -10/Mines History --------- Turn | Location | Event 9 | -11/Scrapyard | Discovered new exit (range 15) 69 | -11/Scrapyard | Entered Materials 69 | -10/Materials | Discovered new exit (range 7) 246 | -10/Materials | Discovered new exit (range 15) 312 | -10/Materials | Build established: Mutant 503 | -10/Materials | Discovered new exit (range 13) 503 | -10/Materials | Identified exit to Mines 881 | -10/Materials | Discovered new exit (range 15) 1282 | -10/Materials | Discovered new exit (range 8) 1636 | -10/Materials | Repaired Sml. Laser 1663 | -10/Materials | Repaired Lgt. Treads 1995 | -10/Materials | Entered Mines 1996 | -10/Mines | Assembled infested the area 2001 | -10/Mines | Assisted by a Guerilla fighting off Assembled 2002 | -10/Mines | Met a Derelict testing a Signal Generator 2021 | -10/Mines | Found Signal Generator 2030 | -10/Mines | Core integrity fell below 50% 2272 | -10/Mines | Lost 3 parts (1p2w) 2285 | -10/Mines | Found a hidden stash of uninstalled traps 2350 | -10/Mines | Core integrity fell below 20% 2364 | -10/Mines | Destroyed by as-05054 with Assembled Maul Last Messages --------------- 02234_ Lgt. Assault Rifle destroyed. 02234_ System corrupted by crushing effect (+3). 02236_ as-16278 destroyed. 02236_ Switching to secondary target: as-79347. 02241_ Lgt. Assault Rifle destroyed. 02243_ System corrupted: Heat flow error (+202). 02243_ as-79347 destroyed. 02246_ Acquired 11 matter. 02259_ QDSA0D5LIO6C881I%VR=RBJU CUC2% U 02285_ A stash of uninstalled traps is collected here! 02290_ Acquired Proton Bomb Trap. 02323_ CN#15OKAFZG 8PHDRJBW0ZIG 02339_ Dropped Proton Bomb Trap. 02340_ Installed Proton Bomb Trap. 02344_ Sml. Laser destroyed. 02350_ as-44289 destroyed. 02353_ as-56285 triggered Proton Bomb Trap. 02353_ A bubble of electromagnetic force engulfs the area. 02355_ Lgt. Armor Plating destroyed. 02363_ as-39349 destroyed. Map ----- +----------------------------------------------------+ | | | | | | | | | | | | | | | | | | | | | | | | | | | | | | | | | | | | | ?????????????????????????????????????????????????? | | ?????????????????????????????????????????????????? | | ???????????????????#####?????????????????????????? | | ???????????????????# #??######?????????????????? | | ??????????????????## ###a ??????????????????? | | ?????????????????## %#?????????????????????? | | ###########?###### a% #?????????????????????? | | ### @##?????????????????????? | | ######## ## a##??????????????????????? | | ???????# ### #???????????????????????? | | ###????# #### ##??????????????????????? | | ###??# % # #####??????????????????? | | " ##?# ## ##?????????????????? | | #?##### ## #### #?????????????????? | | ##????# ## ##??## #?????????????????? | | #????# # #????# #?????????????????? | | ## #????# ????# #?????????????????? | | ?## ##???? ???# #?????????????????? | | ??# ##????? ???## ##?????????????????? | | ??# #?????? ???# #??????????????????? | | ### #?????# ???# #??????????????????? | | # #?????## #??# ##??????????????????? | | ##??????#% ##??## #???????????????????? | | #?????? ##????# #???????????????????? | | ##?????? ###?????# ###???????????????????? | | ????? ????????# #?????????????????????? | | ?? ##?????????? #?????????????????????? | | % ??????????????##??????????????????????? | | * ##?????????????????????????????????????? | | % = ##??????????????????????????????????????? | | #???????????????????????????????????????? | | ###" ##???????????????????????????????????????? | +----------------------------------------------------+ Best States ------------- Heat Dissipation 39 Coolant Potential 50 Energy Generation 10 Energy Capacity 250 Matter Stores 300 Matter Capacity 300 Sight Range 16 Terrain Scan Density 10 Armor Coverage 150 Evasion (%) 50 Recoil Reduction 2 Item Schematics ----------------- None Robot Schematics ------------------ None Fabricated ------------ Nothing Alien Tech Used ----------------- None Achievements -------------- None Challenges ------------ None Game ------ Seed ChipTeslaGreatsword Manual? 0 Play Time 00:12:23 Cumulative 1160.4 hours Start 2021.05.10 @ 19:30:32 End 2021.05.10 @ 19:40:49 Sessions 1 Manual Loads 0 Difficulty Rogue Special Mode None Game No. 399 Rogue 399 Adventurer 0 Explorer 0 Win Type - Total 84 Types 15/10/37/5/1/2/12/1/1 Lore% 96 Gallery% 96 Achievement% 85 Wizard Run 0 Options --------- ASCII 0 Keyboard 0 Movement Numpad Keybinds 0 Fullscreen 1 Font 18/SmallcapsGlow Map View 76x50 Tactical HUD 1 Map Filters NONE Filters NONE Steam 1 RUN: 3e99c86e-ed64-4e7d-83ca-a1127b941dc7